Workbook

Sheet Veckovis försäljningsaktivitet
B1: VARJE VECKA FÖRSÄLJNINGSAKTIVITET | I1: SÄLJARE | J1: Namn | L1: VECKA SOM SLUTAR | M1: Datum
I3: PLATS | J3: Plats | L3: DAGENS DATUM | M3: Datum
B5: DAGAR | C5: FÖRSÄLJNING KONTORET | D5: UTANFÖR KONTORET | E5: BESÖK PÅ KONTORET | F5: EXTERNA SAMTAL | G5: REGISTRERA SAMTAL | H5: NYTT KONTO TELEFON | I5: GÄSTRUM | J5: MAT OCH DRYCK | K5: MÖTE LOGI | L5: ÖVRIGT* | M5: SUMMA
B6: Måndag | C6: 14.00 kr | D6: 23.00 kr | E6: 4.00 kr | F6: 45.00 kr | G6: 22.00 kr | H6: 2.00 kr | I6: 100.00 kr | J6: 0.00 kr | K6: 0.00 kr | L6: 0.00 kr | M6: =SUM(Aktivitet[[#This Row],[FÖRSÄLJNING KONTORET]:[ÖVRIGT*]]) -> 210.00 kr
B7: Tisdag | C7: 23.00 kr | D7: 76.00 kr | E7: 10.00 kr | F7: 50.00 kr | G7: 54.00 kr | H7: 45.00 kr | I7: 80.00 kr | J7: 0.00 kr | K7: 0.00 kr | L7: 0.00 kr | M7: =SUM(Aktivitet[[#This Row],[FÖRSÄLJNING KONTORET]:[ÖVRIGT*]]) -> 338.00 kr
B8: Onsdag | C8: 4.00 kr | D8: 130.00 kr | E8: 11.00 kr | F8: 33.00 kr | G8: 67.00 kr | H8: 65.00 kr | I8: 400.00 kr | J8: 0.00 kr | K8: 0.00 kr | L8: 0.00 kr | M8: =SUM(Aktivitet[[#This Row],[FÖRSÄLJNING KONTORET]:[ÖVRIGT*]]) -> 710.00 kr
B9: Torsdag | C9: 102.00 kr | D9: 40.00 kr | E9: 18.00 kr | F9: 0.00 kr | G9: 86.00 kr | H9: 82.00 kr | I9: 97.00 kr | J9: 0.00 kr | K9: 0.00 kr | L9: 0.00 kr | M9: =SUM(Aktivitet[[#This Row],[FÖRSÄLJNING KONTORET]:[ÖVRIGT*]]) -> 425.00 kr
B10: Fredag | C10: 33.00 kr | D10: 55.00 kr | E10: 22.00 kr | F10: 49.00 kr | G10: 143.00 kr | H10: 26.00 kr | I10: 50.00 kr | J10: 0.00 kr | K10: 0.00 kr | L10: 0.00 kr | M10: =SUM(Aktivitet[[#This Row],[FÖRSÄLJNING KONTORET]:[ÖVRIGT*]]) -> 378.00 kr
B11: Lördag | C11: 0.00 kr | D11: 0.00 kr | E11: 0.00 kr | F11: 0.00 kr | G11: 0.00 kr | H11: 0.00 kr | I11: 0.00 kr | J11: 0.00 kr | K11: 0.00 kr | L11: 0.00 kr | M11: =SUM(Aktivitet[[#This Row],[FÖRSÄLJNING KONTORET]:[ÖVRIGT*]]) -> 0.00 kr
B12: Söndag | C12: 0.00 kr | D12: 0.00 kr | E12: 0.00 kr | F12: 0.00 kr | G12: 0.00 kr | H12: 0.00 kr | I12: 0.00 kr | J12: 0.00 kr | K12: 0.00 kr | L12: 0.00 kr | M12: =SUM(Aktivitet[[#This Row],[FÖRSÄLJNING KONTORET]:[ÖVRIGT*]]) -> 0.00 kr
B13: Sammanlagt | C13: =SUBTOTAL(109,Aktivitet[FÖRSÄLJNING KONTORET]) -> 176.00 kr | D13: =SUBTOTAL(109,Aktivitet[UTANFÖR KONTORET]) -> 324.00 kr | E13: =SUBTOTAL(109,Aktivitet[BESÖK PÅ KONTORET]) -> 65.00 kr | F13: =SUBTOTAL(109,Aktivitet[EXTERNA SAMTAL]) -> 177.00 kr | G13: =SUBTOTAL(109,Aktivitet[REGISTRERA SAMTAL]) -> 372.00 kr | H13: =SUBTOTAL(109,Aktivitet[NYTT KONTO TELEFON]) -> 220.00 kr | I13: =SUBTOTAL(105,Aktivitet[GÄSTRUM]) -> 0.00 kr | J13: =SUBTOTAL(109,Aktivitet[MAT OCH DRYCK]) -> 0.00 kr | K13: =SUBTOTAL(109,Aktivitet[MÖTE LOGI]) -> 0.00 kr | L13: =SUBTOTAL(109,Aktivitet[ÖVRIGT*]) -> 0.00 kr | M13: =SUBTOTAL(109,Aktivitet[SUMMA]) -> 2,061.00 kr
B15: MÅL | C15: 200.00 kr | D15: 400.00 kr | E15: 300.00 kr | F15: 65.00 kr | G15: 500.00 kr | H15: 300.00 kr | I15: 400.00 kr | J15: 600.00 kr | K15: 300.00 kr | L15: 300.00 kr | M15: =SUM(C15:L15) -> 3,365.00 kr
B16: AVVIKELSE | C16: =SUM(Aktivitet[[#Totals],[FÖRSÄLJNING KONTORET]]-C15) -> -24.00 kr | D16: =SUM(Aktivitet[[#Totals],[UTANFÖR KONTORET]]-D15) -> -76.00 kr | E16: =SUM(Aktivitet[[#Totals],[BESÖK PÅ KONTORET]]-E15) -> -235.00 kr | F16: =SUM(Aktivitet[[#Totals],[BESÖK PÅ KONTORET]]-F15) -> 0.00 kr | G16: =SUM(Aktivitet[[#Totals],[REGISTRERA SAMTAL]]-G15) -> -128.00 kr | H16: =SUM(Aktivitet[[#Totals],[NYTT KONTO TELEFON]]-H15) -> -80.00 kr | I16: =SUM(Aktivitet[[#Totals],[GÄSTRUM]]-I15) -> -400.00 kr | J16: =SUM(Aktivitet[[#Totals],[MAT OCH DRYCK]]-J15) -> -600.00 kr | K16: =SUM(Aktivitet[[#Totals],[MÖTE LOGI]]-K15) -> -300.00 kr | L16: =SUM(Aktivitet[[#Totals],[ÖVRIGT*]]-L15) -> -300.00 kr | M16: =SUM(C16:L16) -> -2,143.00 kr
B18: *FÖRKLARING
B20: Godkännande
